bitfinex/quotes_ETHUSD_20250726
["timestamp","ask_amount","ask_price","bid_price","bid_amount"]
[1753504310574,0.482,3747.7,3747.5,0.001]
[1753504310759,0.4596,3747.8,3747.6,2.42]
[1753504311362,0.9416,3747.7,3747.6,2.42]
[1753504311980,0.482,3747.7,3747.6,2.42]
[1753504312539,0.9416,3747.7,3747.6,2.42]
[1753504313368,0.8893,3747.9,3747.6,2.42]
[1753504313573,0.482,3747.8,3747.6,2.42]
[1753504313760,0.4596,3747.7,3747.6,2.42]
[1753504314160,0.9416,3747.7,3747.5,0.001]
[1753504314359,0.9416,3747.7,3747.6,2.42]
[1753504315467,0.9416,3747.7,3747.5,0.001]
[1753504315668,3.55747319,3747.9,3747.6,2.42]
[1753504315864,4.1800224,3747.9,3747.6,2.42]
[1753504316384,0.9416,3747.8,3747.6,2.42]
[1753504316571,0.8198,3747.7,3747.6,2.42]
[1753504317086,1.7614,3747.7,3747.6,2.42]
[1753504318581,1.3018,3747.7,3747.6,2.42]
[1753504320591,4.70684322,3747.7,3747.6,2.42]
[1753504320792,4.70684322,3747.7,3747.5,0.001]
[1753504321087,0.9416,3747.6,3747.5,2.421]
[1753504321651,3.60997442,3747.6,3747.5,2.421]
[1753504321856,4.36157442,3747.6,3747.5,2.421]
[1753504322222,5.09227309,3747.6,3747.5,2.421]
[1753504322856,2.42389867,3747.6,3747.5,2.421]
[1753504325166,2.42389867,3747.6,3747.5,0.001]
[1753504328480,5.09227309,3747.6,3747.5,0.001]
[1753504328682,2.42389867,3747.6,3747.5,0.001]
[1753504328877,1.6932,3747.6,3747.5,0.001]
[1753504330614,7.36157442,3747.6,3747.5,0.001]
[1753504332018,7.91157442,3747.6,3747.5,0.001]
[1753504334123,7.86207488,3747.6,3747.5,0.001]
[1753504344543,7.45197442,3747.6,3747.5,0.001]
[1753504345066,7.92267442,3747.6,3747.5,0.001]
[1753504345576,7.92467442,3747.6,3747.5,0.001]
[1753504346865,7.45397442,3747.6,3747.5,0.001]
[1753504347060,7.89787442,3747.6,3747.5,0.001]
[1753504353285,7.42717442,3747.6,3747.5,0.001]
[1753504356662,3.7536,3747.6,3747.5,0.001]
[1753504356882,3.002,3747.6,3747.5,0.001]
[1753504357082,3.002,3747.6,3747.5,0.9629]
[1753504357516,0.002,3747.6,3747.5,3.47084563]
[1753504357676,0.002,3747.6,3747.5,4.43274563]
[1753504357875,0.002,3747.6,3747.5,5.14287376]
[1753504361206,0.002,3747.6,3747.5,3.2224]
[1753504361516,0.002,3747.6,3747.5,3.6853]
[1753504363307,0.002,3747.6,3747.5,6.35374563]
[1753504363608,0.002,3747.6,3747.5,6.85274563]
[1753504364110,0.002,3747.6,3747.5,1.7643]
[1753504364307,0.002,3747.6,3747.5,4.64094018]
[1753504364804,0.002,3747.6,3747.5,4.14194018]
[1753504365418,3.59627442,3747.6,3747.5,0.001]
[1753504365587,4.53207442,3747.6,3747.5,0.001]
[1753504365788,7.53207442,3747.6,3747.5,0.001]
[1753504375758,7.06137442,3747.6,3747.5,0.001]
[1753504376054,7.51077442,3747.6,3747.5,0.001]
[1753504376257,8.52867557,3747.6,3747.5,0.001]
[1753504377757,8.07927557,3747.6,3747.5,0.001]
[1753504380977,7.27707557,3747.6,3747.5,0.001]
[1753504381261,0.1356,3747.6,3747.5,0.7898]
[1753504381428,0.002,3747.6,3747.5,1.6885]
[1753504384835,0.002,3747.6,3747.5,0.7898]
[1753504385038,0.002,3747.6,3747.5,1.2296]
[1753504389072,0.002,3747.6,3747.5,0.7898]
[1753504392544,0.002,3747.6,3747.5,1.2296]
[1753504397956,0.002,3747.6,3747.5,2.65992659]
[1753504398150,0.002,3747.6,3747.5,4.37054563]
[1753504406417,0.002,3747.6,3747.5,6.78954563]
[1753504410501,0.002,3747.6,3747.5,6.31704563]
[1753504411379,0.002,3747.6,3747.5,5.87724563]
[1753504412707,0.002,3747.6,3747.5,6.83638759]
[1753504413726,0.002,3747.6,3747.5,0.001]
[1753504413909,0.9324,3747.6,3747.5,2.42]
[1753504414097,3.73437442,3747.6,3747.5,2.42]
[1753504414298,4.55617442,3747.6,3747.5,2.42]
[1753504414502,5.27861738,3747.6,3747.5,2.42]
[1753504414708,2.61024296,3747.6,3747.5,2.42]
[1753504415025,5.27861738,3747.6,3747.5,2.42]
[1753504415378,5.27861738,3747.6,3747.5,0.001]
[1753504421705,2.61024296,3747.6,3747.5,0.001]
[1753504422236,5.27861738,3747.6,3747.5,0.001]
[1753504423133,8.27861738,3747.6,3747.5,0.001]
[1753504424735,8.82861738,3747.6,3747.5,0.001]
[1753504432959,5.80397442,3747.6,3747.5,0.001]
[1753504433823,3.1356,3747.6,3747.5,0.4318]
[1753504434029,3.1356,3747.6,3747.5,0.8853]
[1753504435331,3.1356,3747.6,3747.5,0.4318]
[1753504438929,3.1356,3747.6,3747.5,0.001]
[1753504440835,3.1356,3747.6,3747.5,0.4318]
[1753504441065,3.1356,3747.6,3747.5,0.001]
[1753504441663,8.49071352,3747.6,3747.5,0.001]
[1753504447248,4.8825,3747.6,3747.5,0.001]
[1753504447589,7.55087442,3747.6,3747.5,0.001]
[1753504447796,3.1356,3747.6,3747.5,0.001]
[1753504447959,3.1356,3747.6,3747.5,0.4318]
[1753504448157,3.1356,3747.6,3747.5,0.8853]
[1753504449064,0.1356,3747.6,3747.5,3.55374563]
[1753504449263,0.1356,3747.6,3747.5,4.71702019]
[1753504449264,0.002,3747.6,3747.5,4.71702019]
[1753504450711,0.002,3747.6,3747.5,7.13602019]
[1753504451080,0.002,3747.6,3747.5,4.46757456]
[1753504451428,0.002,3747.6,3747.5,3.58327456]
[1753504451631,0.002,3747.6,3747.5,6.68252019]
[1753504452228,0.002,3747.6,3747.5,4.46757456]
[1753504452986,0.002,3747.6,3747.5,7.13602019]
[1753504453724,0.002,3747.6,3747.5,4.46757456]
[1753504454616,0.002,3747.6,3747.5,4.01407456]
[1753504454916,0.002,3747.6,3747.5,3.58327456]
[1753504455514,0.002,3747.6,3747.5,2.77537456]
[1753504456084,0.002,3747.6,3747.5,2.77437456]
[1753504456296,0.498,3747.6,3747.5,2.77437456]
[1753504458588,0.002,3747.6,3747.5,2.77437456]
[1753504459708,0.4581,3747.6,3747.5,2.77437456]
[1753504459897,0.4581,3747.6,3747.5,2.419]
[1753504461122,0.4581,3747.6,3747.5,0.001]
[1753504461320,0.4581,3747.6,3747.5,2.419]
[1753504462104,0.9274,3747.6,3747.5,2.419]
[1753504462304,1.061,3747.6,3747.5,2.419]
[1753504462626,1.061,3747.6,3747.5,0.001]
[1753504462829,1.061,3747.6,3747.5,2.419]
[1753504463814,0.5917,3747.6,3747.5,2.419]
[1753504465442,0.1356,3747.6,3747.5,2.419]
[1753504465825,0.002,3747.6,3747.5,3.69732]
[1753504468354,0.002,3747.6,3747.5,6.18126563]
[1753504468646,0.002,3747.6,3747.5,7.12346563]
[1753504470153,0.002,3747.6,3747.5,4.70546563]
[1753504470323,0.002,3747.6,3747.5,6.64666563]
[1753504470523,0.002,3747.6,3747.5,6.18126563]
[1753504470957,0.002,3747.6,3747.5,6.64666563]
[1753504471568,0.002,3747.6,3747.5,7.12346563]
[1753504471925,0.002,3747.6,3747.5,6.64666563]
[1753504472438,0.002,3747.6,3747.5,7.12346563]
[1753504474587,0.002,3747.6,3747.5,6.64666563]
[1753504474772,0.002,3747.6,3747.5,7.12346563]
[1753504478564,0.002,3747.6,3747.5,7.25706563]
[1753504480493,0.002,3748.4,3748.3,2.6678761]
[1753504480688,0.002,3748.4,3748.3,5.9904761]
[1753504480846,0.002,3748.4,3748.3,7.05492371]
[1753504481605,0.002,3748.4,3748.3,3.40052371]
[1753504481768,0.4581,3748.4,3748.3,5.81852371]
[1753504483182,0.9274,3748.4,3748.3,2.418]
[1753504485490,0.4581,3748.4,3748.3,5.0858761]
[1753504487161,0.002,3748.4,3748.3,5.0858761]
[1753504488313,0.4968,3748.4,3748.3,5.0858761]
[1753504489315,0.4968,3748.4,3748.3,2.418]
[1753504489494,0.9439,3748.4,3748.3,2.418]
[1753504489693,0.9439,3748.4,3748.2,2.80153365]
[1753504490012,0.002,3748.4,3748.3,2.418]
[1753504490517,0.9439,3748.4,3748.3,2.418]
[1753504490706,0.9439,3748.4,3748.3,5.0858761]
[1753504492615,0.002,3748.4,3748.3,6.63973047]
[1753504492812,0.002,3748.4,3748.3,7.56113047]
[1753504496722,1e-08,3748.4,3748.3,7.56113047]
[1753504497627,1e-08,3748.4,3748.3,10.56113047]
[1753504499119,1e-08,3748.4,3748.3,11.11113047]
[1753504500241,1e-08,3749.0,3748.7,0.7651]
[1753504500442,1e-08,3749.0,3748.9,6.65094506]
[1753504500606,1e-08,3749.0,3748.9,7.44624506]
[1753504500810,1e-08,3749.0,3748.9,8.36764506]
[1753504502542,1e-08,3749.0,3748.9,8.5726651]
[1753504502742,1e-08,3749.0,3748.9,10.20515195]
[1753504506443,1e-08,3749.0,3748.9,7.717256]
[1753504506646,0.49480001,3749.0,3748.9,7.717256]
[1753504507855,1e-08,3749.0,3748.9,7.717256]
[1753504508628,1e-08,3749.0,3748.9,7.51223596]
[1753504508937,1e-08,3749.0,3748.9,5.09523596]
[1753504509132,1e-08,3749.0,3748.9,7.51223596]
[1753504509348,0.49480001,3749.0,3748.9,5.09523596]
[1753504509554,0.49480001,3749.0,3748.9,7.51223596]
[1753504510118,1e-08,3749.0,3748.9,8.43363596]
[1753504510326,1e-08,3749.0,3748.9,8.76792727]
[1753504510520,1e-08,3749.0,3748.9,7.84652727]
[1753504514706,0.49480001,3749.0,3748.9,7.84652727]
[1753504515543,1e-08,3749.0,3748.9,8.76792727]
[1753504516582,0.49480001,3749.0,3748.9,4.63422727]
[1753504516774,0.94190001,3749.0,3748.9,4.63422727]
[1753504516951,0.94190001,3749.0,3748.9,2.80104911]
[1753504517197,0.94190001,3749.0,3748.9,5.21804911]
[1753504518991,0.94190001,3749.0,3748.9,2.80104911]
[1753504519220,0.94190001,3749.0,3748.9,2.5506]
[1753504519499,0.94190001,3749.0,3748.9,5.21804911]
[1753504520896,1e-08,3749.0,3748.9,2.80104911]
[1753504521219,0.91680001,3749.0,3748.9,5.21804911]
[1753504527410,1.73210001,3749.0,3748.9,2.417]
[1753504527610,1.90591001,3749.0,3748.8,3.842]
[1753504527819,0.98911001,3749.0,3748.9,2.417]
[1753504528639,1.90591001,3749.0,3748.9,2.417]
[1753504529220,1.73210001,3749.0,3748.9,2.417]
[1753504529676,0.81530001,3749.0,3748.9,2.417]
[1753504529885,0.45350001,3749.0,3748.9,5.21804911]
[1753504531327,0.91680001,3749.0,3748.9,5.21804911]
[1753504537030,1e-08,3749.0,3748.9,6.20745896]
[1753504537323,0.002,3749.2,3749.1,2.66730682]
[1753504537519,0.002,3749.2,3749.1,5.09130682]
[1753504538525,0.002,3749.2,3749.1,2.66730682]
[1753504538726,0.002,3749.2,3749.1,5.09230682]
[1753504539024,0.002,3749.2,3749.1,5.59090682]
[1753504539231,0.002,3749.2,3749.1,6.58485572]
[1753504540822,0.002,3749.2,3749.1,7.01775572]
[1753504541488,0.002,3749.2,3749.1,7.81205572]
[1753504541892,0.002,3749.3,3749.2,2.66723567]
[1753504542116,0.002,3749.3,3749.2,7.47170397]
[1753504542421,0.002,3749.4,3749.2,7.47170397]
[1753504542422,1e-08,3749.4,3749.3,3.46146453]
[1753504542621,1e-08,3749.4,3749.3,9.81796453]
[1753504543432,1e-08,3749.4,3749.3,13.65996453]
[1753504546819,1e-08,3749.4,3749.3,10.30346453]
[1753504547134,1e-08,3749.4,3749.3,10.63769508]
[1753504547135,0.91680001,3749.4,3749.3,10.63769508]
[1753504547434,1.73280001,3749.4,3749.3,6.3996]
[1753504547799,1.73280001,3749.4,3749.3,9.06676453]
[1753504548315,1.73280001,3749.4,3749.3,5.22476453]
[1753504550109,1e-08,3749.4,3749.3,5.22476453]
[1753504550313,1e-08,3749.4,3749.3,6.51639023]
[1753504551338,1e-08,3749.4,3749.3,5.22476453]
[1753504552214,0.46390001,3749.4,3749.3,5.22476453]
[1753504552418,0.90160001,3749.4,3749.3,5.22476453]
[1753504553339,0.90160001,3749.4,3749.3,0.1336]
[1753504553505,0.90160001,3749.4,3749.3,2.5576]
[1753504554420,0.90160001,3749.4,3749.3,5.22476453]
[1753504554827,1e-08,3749.4,3749.3,5.22476453]
[1753504555716,0.90160001,3749.4,3749.3,5.22476453]
[1753504556038,0.90160001,3749.4,3749.3,2.80076453]
[1753504556233,0.90160001,3749.4,3749.3,2.5576]
[1753504556875,1e-08,3749.4,3749.3,2.5576]
[1753504557345,1e-08,3749.4,3749.3,5.22476453]
[1753504557957,1e-08,3749.4,3749.3,6.262701]
[1753504558252,1e-08,3749.4,3749.3,6.731901]
[1753504560625,1e-08,3749.4,3749.3,6.262701]
[1753504561530,1e-08,3749.4,3749.3,6.263701]
[1753504565451,1e-08,3749.4,3749.3,9.79169695]
[1753504565759,1e-08,3749.4,3749.3,6.732901]
[1753504567351,1e-08,3749.4,3749.3,6.263701]
[1753504569352,0.90160001,3749.4,3749.3,5.22676453]
[1753504569686,1e-08,3749.4,3749.3,5.22676453]
[1753504569983,1e-08,3749.4,3749.3,5.68226453]
[1753504571283,1e-08,3749.4,3749.3,6.96926453]
[1753504571489,1e-08,3749.4,3749.3,8.33126805]
[1753504576661,1e-08,3749.4,3749.3,7.86206805]
[1753504576862,1e-08,3749.4,3749.3,8.33126805]
[1753504578454,1e-08,3749.4,3749.3,2.66816453]
[1753504578655,1e-08,3749.4,3749.3,6.36843617]
[1753504578889,1e-08,3749.4,3749.3,6.77886453]
[1753504580491,1e-08,3749.4,3749.3,2.66816453]
[1753504580696,1e-08,3749.4,3749.3,5.09616453]
[1753504580874,1e-08,3749.4,3749.3,5.91888813]
[1753504581369,1e-08,3749.4,3749.3,11.15478408]
[1753504581574,1e-08,3749.4,3749.3,11.59188408]
[1753504582492,1e-08,3749.4,3749.3,7.60838813]
[1753504582684,1e-08,3749.4,3749.3,7.17128813]
[1753504583083,1e-08,3749.4,3749.3,6.70748813]
[1753504583475,0.95940001,3749.4,3749.3,5.91988813]
[1753504583687,0.95940001,3749.4,3749.3,5.09716453]
[1753504585307,1e-08,3749.4,3749.3,5.09716453]
[1753504585596,1e-08,3749.4,3749.3,3.42236453]
[1753504585800,0.95940001,3749.4,3749.3,5.09916453]
[1753504587101,1e-08,3749.4,3749.3,5.09916453]
[1753504587300,1e-08,3749.4,3749.3,6.63000813]
[1753504587482,1e-08,3749.4,3749.3,7.53090813]
[1753504588474,1e-08,3749.4,3749.3,7.66450813]
[1753504590507,1e-08,3749.4,3749.3,7.22740813]
[1753504590872,1e-08,3749.4,3749.3,10.77740813]
[1753504591084,1e-08,3749.4,3749.3,11.21450813]
[1753504592809,1e-08,3750.0,3749.9,0.55]
[1753504593013,1e-08,3750.0,3749.9,38.59123409]
[1753504593322,0.9594,3751.6,3751.5,2.66560042]
[1753504593518,0.9594,3751.6,3751.5,5.09960042]
[1753504593692,0.9594,3751.6,3751.5,5.23320042]
[1753504594288,0.1336,3752.3,3751.7,2.6654167]
[1753504594490,0.89645478,3752.2,3751.8,2.5676]
[1753504594690,0.9594,3752.1,3751.9,2.433]
[1753504595020,0.9594,3752.0,3751.9,2.433]
[1753504595692,0.9594,3752.3,3751.9,2.433]
[1753504595885,0.4913,3752.2,3751.9,2.433]
[1753504596086,0.9594,3752.2,3751.9,2.433]
[1753504596313,0.4681,3752.1,3751.9,2.433]
[1753504596498,0.1336,3752.5,3751.9,2.433]
[1753504596499,0.9594,3752.0,3751.9,2.433]
[1753504597225,0.9594,3752.3,3751.9,2.433]
[1753504597387,0.49365528,3752.5,3751.9,2.433]
[1753504597932,0.9594,3752.4,3751.9,2.433]
[1753504598231,0.9594,3752.3,3752.1,0.1336]
[1753504598543,0.36005528,3752.5,3752.2,2.433]
[1753504598678,0.4681,3752.5,3752.2,2.433]
[1753504598875,0.4681,3752.5,3752.2,5.09809244]
[1753504599115,0.9594,3752.5,3752.2,2.433]
[1753504599274,0.4913,3752.4,3752.2,2.433]
[1753504599482,0.9358,3752.8,3752.2,2.433]
[1753504599691,0.4913,3752.4,3752.2,2.433]
[1753504600017,0.9594,3752.3,3752.2,2.433]
[1753504600380,0.9594,3752.3,3752.2,2.5666]
[1753504602403,0.4681,3752.6,3752.2,2.5666]
[1753504602718,0.9594,3752.5,3752.2,2.5666]
[1753504602932,0.9594,3752.5,3752.4,0.1336]
[1753504603321,0.4681,3752.5,3752.4,0.1336]
[1753504603837,0.9594,3752.5,3752.4,0.1336]
[1753504605590,0.9094,3752.5,3752.4,0.1336]
[1753504608834,0.4913,3752.5,3752.4,0.1336]
[1753504609448,0.943,3752.5,3752.4,0.1336]
[1753504612545,0.9038,3752.5,3752.4,0.1336]
[1753504612745,0.9038,3752.5,3752.4,2.43]
[1753504613447,3.56869254,3752.5,3752.4,2.43]
[1753504613662,1.643359,3752.5,3752.4,2.43]
[1753504615746,3.46689668,3752.8,3752.4,2.43]
[1753504615947,3.11685645,3752.7,3752.4,2.43]
[1753504616256,0.4521,3752.7,3752.4,2.43]
[1753504616849,3.46689396,3752.8,3752.4,2.43]
[1753504617049,0.4521,3752.6,3752.4,2.43]
[1753504618250,4.49194614,3752.8,3752.4,2.43]
[1753504618417,0.4521,3752.5,3752.4,2.43]
[1753504618942,0.4521,3752.5,3752.2,0.1336]
[1753504619149,0.4521,3752.5,3752.4,2.43]
[1753504620050,0.9038,3752.5,3752.4,2.43]
[1753504620250,1.82725218,3752.8,3752.4,2.43]
[1753504620757,2.27935218,3752.8,3752.5,0.4602]
[1753504620953,2.27895218,3752.8,3752.4,2.43]
[1753504621153,0.4521,3752.7,3752.4,2.43]
[1753504621360,0.9038,3752.7,3752.4,2.43]
[1753504621558,0.4521,3752.6,3752.4,2.43]
[1753504621732,0.4517,3752.6,3752.4,2.43]
[1753504621932,3.46687948,3752.8,3752.5,2.43]
[1753504622149,0.36004795,3752.7,3752.5,2.43]
[1753504622447,0.9038,3752.6,3752.5,2.43]
[1753504622817,0.9038,3752.6,3752.2,0.1336]
[1753504623158,0.9038,3752.6,3751.9,0.4602]
[1753504623159,0.7527,3752.4,3752.3,2.43]
[1753504623561,1.6565,3752.4,3752.3,2.43]
[1753504623855,1.1548,3752.4,3752.3,2.43]
[1753504624054,1.6065,3752.4,3752.3,2.43]
[1753504624858,1.6065,3752.4,3752.0,2.79880424]
[1753504625035,1.6065,3752.4,3752.3,2.43]
[1753504625240,1.1548,3752.4,3752.3,2.43]
[1753504626028,1.6065,3752.4,3752.3,2.43]
[1753504626942,1.6065,3752.4,3752.3,2.431]
[1753504628658,1.6065,3752.4,3752.3,2.43]
[1753504628842,2.08320172,3752.4,3752.3,2.43]
[1753504629036,2.08320172,3752.4,3752.3,0.001]
[1753504629263,2.08320172,3752.4,3752.3,2.43]
[1753504629769,4.74816281,3752.4,3752.3,2.43]
[1753504630133,4.74816281,3752.4,3752.3,0.001]
[1753504630328,4.74816281,3752.4,3752.3,2.429]
[1753504630554,4.88176281,3752.4,3752.3,2.429]
[1753504631066,4.88176281,3752.4,3752.3,0.001]
[1753504631872,4.83176281,3752.4,3752.3,0.001]
[1753504632074,0.002,3752.5,3752.3,0.001]
[1753504632371,3.70236109,3752.4,3752.3,0.001]
[1753504632872,3.70236109,3752.4,3752.3,2.431]
[1753504633035,3.70236109,3752.4,3752.3,0.001]
[1753504633233,4.63927919,3752.4,3752.3,0.001]
[1753504635077,5.46357919,3752.4,3752.3,0.001]
[1753504636092,8.46357919,3752.4,3752.3,0.001]
[1753504639095,9.01357919,3752.4,3752.3,0.001]
[1753504639379,8.46357919,3752.4,3752.3,0.001]
[1753504639760,8.03557919,3752.4,3752.3,0.001]
[1753504640060,8.49017919,3752.4,3752.3,0.001]
[1753504640463,8.44017919,3752.4,3752.3,0.001]
[1753504641482,7.98557919,3752.4,3752.3,0.001]
[1753504641978,8.44017919,3752.4,3752.3,0.001]
[1753504650274,8.39017919,3752.4,3752.3,0.001]
[1753504652598,8.53114733,3752.4,3752.3,0.001]
[1753504653802,8.39017919,3752.4,3752.3,0.001]
[1753504655100,8.53112774,3752.4,3752.3,0.001]
[1753504655287,8.39017919,3752.4,3752.3,0.001]
[1753504656207,8.94017919,3752.4,3752.3,0.001]
[1753504656377,9.08111963,3752.4,3752.3,0.001]
[1753504656587,9.08111963,3752.4,3752.3,1e-08]
[1753504656971,16.39075366,3752.4,3752.3,1e-08]
[1753504657173,16.14111963,3752.4,3752.3,1e-08]
[1753504657714,16.39071901,3752.4,3752.3,1e-08]
[1753504658193,8.26412347,3751.6,3751.5,0.001]
[1753504658517,13.82372347,3751.6,3751.5,0.001]
[1753504658709,14.75412347,3751.6,3751.5,0.001]
[1753504660981,14.75412347,3751.6,3750.7,0.001]
[1753504660982,6.46949789,3750.8,3750.7,0.001]
[1753504662806,6.46949789,3750.8,3750.7,0.4821]
[1753504663221,7.40641599,3750.8,3750.7,0.4821]
[1753504663723,3.0,3750.8,3750.7,0.9287]
[1753504664687,0.1336,3750.9,3750.7,0.9287]
[1753504665021,0.1336,3750.9,3750.7,0.001]
[1753504665197,0.1336,3750.9,3750.8,0.9277]
[1753504667739,0.8034,3751.4,3750.8,0.4993]
[1753504667891,0.1336,3750.9,3750.8,0.4993]
[1753504668092,5.79962682,3750.9,3750.8,0.4993]
[1753504668304,5.79962682,3750.9,3750.8,0.9505]
[1753504668718,3.1336,3750.9,3750.8,0.9505]
[1753504669430,2.66609789,3750.8,3750.7,0.001]
[1753504669637,2.66609789,3750.8,3750.7,0.5003]
[1753504670610,5.79967318,3750.9,3750.7,0.5003]
[1753504671036,5.79967318,3750.9,3750.8,0.4993]
[1753504672034,3.1336,3750.9,3750.8,0.9505]
[1753504678908,0.1336,3750.9,3750.8,1.7467]
[1753504679144,0.1336,3751.2,3750.8,1.92147]
[1753504679330,0.1336,3751.2,3750.9,0.9505]
[1753504679536,2.66539879,3751.8,3751.0,2.66588719]
[1753504679708,0.1336,3751.5,3751.1,3.46203552]
[1753504679915,0.1336,3751.5,3751.2,0.9505]
[1753504680335,0.1336,3751.5,3751.3,0.9505]
[1753504680814,0.1336,3751.5,3751.1,0.7962]
[1753504680815,0.1336,3751.5,3751.1,3.2222]
[1753504681030,0.1336,3751.6,3751.4,0.9505]
[1753504681226,0.1336,3751.6,3751.5,1.711]
[1753504681544,2.426,3752.2,3751.5,1.2598]
[1753504681545,0.140736,3752.0,3751.5,1.2598]
[1753504681713,0.1336,3751.7,3751.2,3.6377]
[1753504681922,0.1336,3751.7,3751.3,0.4993]
[1753504682121,0.1336,3751.7,3751.4,0.4512]
[1753504682557,0.1336,3751.7,3751.2,3.1865]
[1753504682850,0.1336,3751.7,3751.4,0.9505]
[1753504683250,0.1336,3751.7,3751.2,6.26138488]
[1753504683461,0.1336,3751.7,3751.5,0.9505]
[1753504683819,0.9276,3751.7,3751.1,0.1336]
[1753504684020,2.66596035,3751.0,3750.8,2.426]
[1753504684327,3.28436035,3751.0,3750.7,2.427]
[1753504684842,2.79969789,3750.8,3750.7,0.001]
[1753504685022,3.0,3751.2,3750.7,0.7615]
[1753504685224,0.1336,3750.9,3750.7,0.7615]
[1753504685451,2.79963772,3750.9,3750.7,0.7615]
[1753504685626,0.1336,3750.9,3750.7,1.2608]
[1753504685821,0.1336,3750.9,3750.7,0.7615]
[1753504686025,3.0,3751.7,3750.7,0.7615]
[1753504686026,0.4848,3751.6,3750.8,0.9505]
[1753504686237,0.1336,3751.1,3750.9,0.9505]
[1753504686445,0.1336,3751.1,3751.0,0.9505]
[1753504687854,0.1336,3751.1,3751.0,0.4993]
[1753504688865,3.0,3751.5,3751.0,0.4993]
[1753504688866,3.0,3751.5,3751.0,0.9505]
[1753504689074,0.1336,3751.2,3750.9,2.66602517]
[1753504689259,0.1336,3751.2,3751.1,0.9505]
[1753504690059,0.1336,3751.2,3751.1,0.4993]
[1753504696169,0.1336,3751.2,3751.0,2.429]
[1753504698180,0.1336,3751.2,3750.8,0.001]
[1753504698505,0.6306,3751.2,3751.0,2.428]
[1753504698688,0.1336,3751.2,3751.0,2.428]
[1753504698883,0.1336,3751.2,3751.0,2.9044]
[1753504699882,0.1336,3751.2,3751.1,0.9245]
[1753504700900,2.66558186,3751.6,3751.1,0.9245]
[1753504701069,0.1336,3751.3,3751.2,0.4764]
[1753504703207,0.1336,3751.3,3751.0,2.428]
[1753504703510,0.9534,3751.2,3750.8,0.001]
[1753504703794,2.79955574,3751.0,3750.9,2.426]
[1753504703960,2.79955574,3751.0,3750.8,0.001]
[1753504703961,2.66602682,3750.9,3750.8,0.001]
[1753504704162,3.61942682,3750.9,3750.8,2.428]
[1753504704673,3.61942682,3750.9,3750.8,0.001]
[1753504704877,4.34442922,3750.9,3750.8,0.001]
[1753504709321,1.2220024,3750.9,3750.8,0.001]
[1753504710424,3.88802922,3750.9,3750.8,0.001]
[1753504710789,4.34442922,3750.9,3750.8,0.001]
[1753504713694,0.1336,3751.0,3750.8,0.4774]
[1753504713930,0.1336,3751.0,3750.9,0.4764]
[1753504714130,0.7733,3751.8,3750.9,0.9245]
[1753504714444,0.1336,3751.2,3751.0,0.9245]
[1753504714645,0.1336,3751.2,3750.8,0.001]
[1753504714843,0.1336,3751.2,3751.1,0.9245]
[1753504715760,0.1336,3751.2,3751.1,0.4481]
[1753504716050,0.1356,3751.5,3751.1,4.36138467]
[1753504716235,0.1356,3751.5,3751.1,6.78738467]
[1753504716423,0.1356,3751.5,3751.1,5.86288467]
[1753504716620,0.1356,3751.5,3751.3,2.66573489]
[1753504716823,0.1356,3751.5,3751.4,0.771]
[1753504717016,0.002,3751.5,3751.4,1.6955]
[1753504717660,0.002,3751.5,3751.4,4.36117148]
[1753504718218,0.002,3751.5,3751.4,1.6955]
[1753504720225,0.002,3751.5,3751.4,4.36117148]
[1753504721243,0.002,3751.5,3751.4,1.6955]
[1753504721457,0.002,3751.5,3751.4,4.36117148]
[1753504721655,0.002,3751.5,3751.4,1.6955]
[1753504722947,0.002,3751.5,3751.4,4.36117148]
[1753504723554,0.002,3751.5,3751.4,1.6955]
[1753504724462,0.002,3751.5,3751.4,4.36117148]
[1753504725258,0.002,3751.5,3751.4,6.78617148]
[1753504729042,0.002,3751.5,3751.4,7.73932959]
[1753504732748,0.002,3751.5,3751.4,5.07365811]
[1753504732955,0.002,3751.5,3751.4,6.78077148]
[1753504737761,0.002,3751.5,3751.4,6.78177148]
[1753504741967,0.002,3751.5,3751.4,6.33607148]
[1753504742161,0.002,3751.5,3751.4,6.77877148]
[1753504742497,0.4848,3751.5,3751.4,5.08867148]
[1753504742868,0.002,3751.5,3751.4,5.08867148]
[1753504743070,0.002,3751.5,3751.4,5.55937148]
[1753504743290,0.002,3751.5,3751.4,6.51972987]
[1753504743895,0.002,3751.5,3751.4,6.96242987]
[1753504751308,0.7616,3751.4,3750.8,0.001]
[1753504751508,0.002,3751.5,3750.9,0.4707]
[1753504751810,0.4828,3751.4,3750.9,1.5333]
[1753504751971,0.9377,3751.3,3750.9,1.5333]
[1753504752175,0.9377,3751.3,3750.9,2.07930322]
[1753504752377,2.66595574,3751.0,3750.9,0.1336]
[1753504752599,2.66602682,3750.9,3750.8,0.001]
[1753504752826,4.36532682,3750.9,3750.8,0.001]
[1753504753292,4.50633337,3750.9,3750.8,0.001]
[1753504753488,4.36532682,3750.9,3750.8,2.478]
[1753504753688,5.08181508,3750.9,3750.8,2.478]
[1753504753910,5.08181508,3750.9,3750.8,0.001]
[1753504760777,0.1336,3751.0,3750.8,0.001]
[1753504761111,2.66594534,3751.1,3750.8,0.9603]
[1753504761411,0.002,3751.5,3751.0,0.7663]
[1753504761625,0.002,3751.5,3751.0,0.79295955]
[1753504761783,0.002,3751.5,3751.4,2.79927148]
[1753504761982,0.002,3751.5,3751.4,6.99787148]
[1753504762712,0.002,3751.5,3751.4,4.3322]